[Event "Titled Tuesday Blitz May 30 Early 2023"]
[White "Hambleton, Aman"]
[Black "Berezin, Viktor"]
[WhiteFideId "2606577"]
[BlackFideId "14107872"]
[WhiteElo "2511"]
[BlackElo "2310"]
[Result "1-0"]
[Round "02"]
[TimeControl "180+2"]
[Date "2023.05.30"]
[WhiteClock "0:00:04"]
[BlackClock "0:00:12"]

1. c4 {[%clk 0:03:00]}  Nf6 {[%clk 0:02:59]} 2. d4 {[%clk 0:03:00]}  g6 {[%clk 0:03:00]} 3. Nc3 {[%clk 0:03:00]}  Bg7 {[%clk 0:03:00]} 4. e4 {[%clk 0:03:00]}  d6 {[%clk 0:03:01]} 5. f3 {[%clk 0:02:56]}  O-O {[%clk 0:03:00]} 6. Be3 {[%clk 0:02:56]}  b6 {[%clk 0:02:59]} 7. Bd3 {[%clk 0:02:56]}  Bb7 {[%clk 0:02:59]} 8. Nh3 {[%clk 0:02:44]}  c5 {[%clk 0:02:58]} 9. d5 {[%clk 0:02:43]}  e6 {[%clk 0:02:58]} 10. O-O {[%clk 0:02:41]}  exd5 {[%clk 0:02:58]} 11. exd5 {[%clk 0:02:35]}  a6 {[%clk 0:02:55]} 12. a4 {[%clk 0:02:35]}  Nbd7 {[%clk 0:02:54]} 13. Nf2 {[%clk 0:02:25]}  h6 {[%clk 0:02:35]} 14. Qd2 {[%clk 0:02:23]}  Kh7 {[%clk 0:02:35]} 15. f4 {[%clk 0:02:10]}  Re8 {[%clk 0:02:29]} 16. Rae1 {[%clk 0:02:08]}  Kg8 {[%clk 0:02:01]} 17. g3 {[%clk 0:02:01]}  b5 {[%clk 0:01:50]} 18. axb5 {[%clk 0:01:57]}  axb5 {[%clk 0:01:51]} 19. Nxb5 {[%clk 0:01:58]}  Nb6 {[%clk 0:01:50]} 20. b3 {[%clk 0:01:47]}  Ba6 {[%clk 0:01:36]} 21. Nc3 {[%clk 0:01:44]}  Bc8 {[%clk 0:01:32]} 22. Kg2 {[%clk 0:01:33]}  Ra3 {[%clk 0:01:29]} 23. Bc2 {[%clk 0:01:32]}  Bf5 {[%clk 0:01:25]} 24. Bxf5 {[%clk 0:01:17]}  gxf5 {[%clk 0:01:26]} 25. Qc2 {[%clk 0:01:18]}  Ne4 {[%clk 0:01:03]} 26. Ncxe4 {[%clk 0:00:54]}  fxe4 {[%clk 0:01:04]} 27. Bc1 {[%clk 0:00:54]}  Ra8 {[%clk 0:00:56]} 28. Nxe4 {[%clk 0:00:35]}  f5 {[%clk 0:00:56]} 29. Nd2 {[%clk 0:00:27]}  Qf6 {[%clk 0:00:56]} 30. Nf3 {[%clk 0:00:25]}  Nd7 {[%clk 0:00:36]} 31. Nh4 {[%clk 0:00:13]}  Qc3 {[%clk 0:00:19]} 32. Qxc3 {[%clk 0:00:10]}  Bxc3 {[%clk 0:00:20]} 33. Rxe8+ {[%clk 0:00:10]}  Rxe8 {[%clk 0:00:20]} 34. Nxf5 {[%clk 0:00:11]}  Nf6 {[%clk 0:00:19]} 35. Kf3 {[%clk 0:00:07]}  Ne4 {[%clk 0:00:17]} 36. Nxh6+ {[%clk 0:00:05]}  Kg7 {[%clk 0:00:17]} 37. Nf5+ {[%clk 0:00:05]}  Kf6 {[%clk 0:00:18]} 38. g4 {[%clk 0:00:06]}  Bd2 {[%clk 0:00:16]} 39. h4 {[%clk 0:00:04]}  Bxc1 {[%clk 0:00:16]} 40. Rxc1 {[%clk 0:00:05]}  Nd2+ {[%clk 0:00:16]} 41. Kg3 {[%clk 0:00:05]}  Ne4+ {[%clk 0:00:16]} 42. Kg2 {[%clk 0:00:04]}  Rg8 {[%clk 0:00:15]} 43. Kf3 {[%clk 0:00:02]}  Nd2+ {[%clk 0:00:15]} 44. Ke3 {[%clk 0:00:02]}  Nxb3 {[%clk 0:00:15]} 45. Rb1 {[%clk 0:00:02]}  Rxg4 {[%clk 0:00:15]} 46. Nxd6 {[%clk 0:00:02]}  Nd4 {[%clk 0:00:15]} 47. Ne4+ {[%clk 0:00:02]}  Kf5 {[%clk 0:00:15]} 48. Nd6+ {[%clk 0:00:02]}  Kf6 {[%clk 0:00:15]} 49. Rb6 {[%clk 0:00:03]}  Rg3+ {[%clk 0:00:15]} 50. Ke4 {[%clk 0:00:02]}  Rg1 {[%clk 0:00:16]} 51. Nb5+ {[%clk 0:00:02]}  Kf7 {[%clk 0:00:16]} 52. Nxd4 {[%clk 0:00:02]}  Rf1 {[%clk 0:00:16]} 53. Nf3 {[%clk 0:00:02]}  Re1+ {[%clk 0:00:17]} 54. Nxe1 {[%clk 0:00:03]}  Ke7 {[%clk 0:00:13]} 55. Nc2 {[%clk 0:00:03]}  Kd7 {[%clk 0:00:12]} 56. Ne3 {[%clk 0:00:04]} 1-0


[Site "https://www.chess.com"]

[Event "Titled Tuesday Blitz May 30 Early 2023"]
[White "Fier, Alexandr"]
[Black "Shvedova, Alexandra"]
[WhiteFideId "2107139"]
[BlackFideId "54154782"]
[WhiteElo "2610"]
[BlackElo "1973"]
[Result "1-0"]
[Round "02"]
[TimeControl "180+2"]
[Date "2023.05.30"]
[WhiteClock "0:02:31"]
[BlackClock "0:00:36"]

1. d4 {[%clk 0:03:00]}  Nf6 {[%clk 0:02:59]} 2. Bg5 {[%clk 0:03:01]}  Ne4 {[%clk 0:02:59]} 3. h4 {[%clk 0:03:01]}  c5 {[%clk 0:02:57]} 4. dxc5 {[%clk 0:03:01]}  Qa5+ {[%clk 0:02:50]} 5. Nd2 {[%clk 0:03:00]}  Nxg5 {[%clk 0:02:34]} 6. hxg5 {[%clk 0:03:00]}  Qxc5 {[%clk 0:02:34]} 7. g6 {[%clk 0:03:01]}  fxg6 {[%clk 0:02:31]} 8. e3 {[%clk 0:03:02]}  Nc6 {[%clk 0:02:28]} 9. Bd3 {[%clk 0:03:02]}  Ne5 {[%clk 0:02:20]} 10. Ngf3 {[%clk 0:02:57]}  Nxd3+ {[%clk 0:02:18]} 11. cxd3 {[%clk 0:02:55]}  d6 {[%clk 0:02:15]} 12. Rc1 {[%clk 0:02:55]}  Qa5 {[%clk 0:02:11]} 13. Qb3 {[%clk 0:02:54]}  Qb6 {[%clk 0:01:42]} 14. Qc4 {[%clk 0:02:52]}  Bd7 {[%clk 0:01:34]} 15. Ng5 {[%clk 0:02:51]}  e6 {[%clk 0:01:20]} 16. Qf4 {[%clk 0:02:44]}  Rc8 {[%clk 0:00:49]} 17. Rxc8+ {[%clk 0:02:36]}  Bxc8 {[%clk 0:00:48]} 18. Rxh7 {[%clk 0:02:37]}  Rxh7 {[%clk 0:00:42]} 19. Qf7+ {[%clk 0:02:37]}  Kd8 {[%clk 0:00:43]} 20. Qxf8+ {[%clk 0:02:37]}  Kc7 {[%clk 0:00:42]} 21. Nxh7 {[%clk 0:02:38]}  Qxb2 {[%clk 0:00:41]} 22. Qe7+ {[%clk 0:02:35]}  Kb8 {[%clk 0:00:42]} 23. Qxd6+ {[%clk 0:02:35]}  Ka8 {[%clk 0:00:36]} 24. Qc7 {[%clk 0:02:31]} 1-0


[Site "https://www.chess.com"]

[Event "Titled Tuesday Blitz May 30 Early 2023"]
[White "Zochowski, Kacper"]
[Black "Kukhmazov, Arsen"]
[WhiteFideId "1125494"]
[BlackFideId "24108260"]
[WhiteElo "2235"]
[BlackElo "2396"]
[Result "0-1"]
[Round "02"]
[TimeControl "180+2"]
[Date "2023.05.30"]
[WhiteClock "0:00:00"]
[BlackClock "0:01:54"]

1. d4 {[%clk 0:03:00]}  d5 {[%clk 0:02:59]} 2. c4 {[%clk 0:02:59]}  c6 {[%clk 0:02:59]} 3. Nc3 {[%clk 0:02:57]}  Nf6 {[%clk 0:02:58]} 4. Nf3 {[%clk 0:02:56]}  dxc4 {[%clk 0:02:57]} 5. a4 {[%clk 0:02:41]}  Bf5 {[%clk 0:02:57]} 6. Ne5 {[%clk 0:02:32]}  Nbd7 {[%clk 0:02:57]} 7. Nxc4 {[%clk 0:02:32]}  Qc7 {[%clk 0:02:57]} 8. g3 {[%clk 0:02:30]}  e5 {[%clk 0:02:57]} 9. dxe5 {[%clk 0:02:24]}  Nxe5 {[%clk 0:02:58]} 10. Bf4 {[%clk 0:02:10]}  Nfd7 {[%clk 0:02:58]} 11. Nxe5 {[%clk 0:01:47]}  Nxe5 {[%clk 0:02:58]} 12. Bg2 {[%clk 0:01:45]}  f6 {[%clk 0:02:26]} 13. O-O {[%clk 0:01:40]}  Bb4 {[%clk 0:02:26]} 14. Rc1 {[%clk 0:01:35]}  Qe7 {[%clk 0:02:22]} 15. Qb3 {[%clk 0:00:33]}  Be6 {[%clk 0:02:21]} 16. Qc2 {[%clk 0:00:34]}  O-O {[%clk 0:02:18]} 17. Rfd1 {[%clk 0:00:29]}  Qf7 {[%clk 0:02:13]} 18. Qe4 {[%clk 0:00:24]}  a5 {[%clk 0:02:11]} 19. Be3 {[%clk 0:00:18]}  Nc4 {[%clk 0:02:07]} 20. Rb1 {[%clk 0:00:06]}  Rfe8 {[%clk 0:02:07]} 21. Bf4 {[%clk 0:00:03]}  Nxb2 {[%clk 0:02:03]} 22. Rxb2 {[%clk 0:00:03]}  Bxc3 {[%clk 0:02:04]} 23. Rxb7 {[%clk 0:00:03]}  Qxb7 {[%clk 0:02:04]} 24. Qxc6 {[%clk 0:00:02]}  Qxc6 {[%clk 0:02:04]} 25. Bxc6 {[%clk 0:00:03]}  Red8 {[%clk 0:01:56]} 26. Rc1 {[%clk 0:00:03]}  Bb2 {[%clk 0:01:54]} 27. Rc2 {[%clk 0:00:02]}  Rac8 {[%clk 0:01:54]} 28. Rxb2 {[%clk 0:00:00]}  Rxc6 {[%clk 0:01:54]} 0-1


[Site "https://www.chess.com"]

[Event "Titled Tuesday Blitz May 30 Early 2023"]
[White "Fernandez Guillen, Ernesto J."]
[Black "robertoalejandro10"]
[WhiteFideId "3512428"]
[WhiteElo "2429"]
[BlackElo "2541"]
[Result "1-0"]
[Round "02"]
[TimeControl "180+2"]
[Date "2023.05.30"]
[WhiteClock "0:00:30"]
[BlackClock "0:00:00"]

1. e4 {[%clk 0:02:55]}  c5 {[%clk 0:02:59]} 2. Nf3 {[%clk 0:02:55]}  g6 {[%clk 0:02:59]} 3. d4 {[%clk 0:02:56]}  cxd4 {[%clk 0:03:00]} 4. Nxd4 {[%clk 0:02:57]}  Bg7 {[%clk 0:03:00]} 5. Nc3 {[%clk 0:02:57]}  Nc6 {[%clk 0:03:00]} 6. Be3 {[%clk 0:02:57]}  Nf6 {[%clk 0:03:00]} 7. Bc4 {[%clk 0:02:28]}  O-O {[%clk 0:02:57]} 8. Bb3 {[%clk 0:02:26]}  a5 {[%clk 0:02:56]} 9. a4 {[%clk 0:02:21]}  Ng4 {[%clk 0:02:55]} 10. Qxg4 {[%clk 0:02:22]}  Nxd4 {[%clk 0:02:55]} 11. Qd1 {[%clk 0:02:22]}  Nxb3 {[%clk 0:02:56]} 12. cxb3 {[%clk 0:02:22]}  d6 {[%clk 0:02:57]} 13. h4 {[%clk 0:02:22]}  h5 {[%clk 0:02:47]} 14. Rc1 {[%clk 0:02:21]}  Be6 {[%clk 0:02:47]} 15. O-O {[%clk 0:02:18]}  Rc8 {[%clk 0:02:46]} 16. f4 {[%clk 0:02:12]}  Bg4 {[%clk 0:02:17]} 17. Qd2 {[%clk 0:02:11]}  e6 {[%clk 0:01:55]} 18. Nb5 {[%clk 0:02:08]}  Qxh4 {[%clk 0:01:26]} 19. Rxc8 {[%clk 0:01:44]}  Rxc8 {[%clk 0:01:26]} 20. Nxd6 {[%clk 0:01:44]}  Rd8 {[%clk 0:00:33]} 21. e5 {[%clk 0:01:36]}  Bf8 {[%clk 0:00:32]} 22. Bf2 {[%clk 0:01:28]}  Qe7 {[%clk 0:00:22]} 23. Qxa5 {[%clk 0:01:27]}  g5 {[%clk 0:00:22]} 24. Ne4 {[%clk 0:01:13]}  gxf4 {[%clk 0:00:19]} 25. Bc5 {[%clk 0:01:04]}  Qh4 {[%clk 0:00:12]} 26. Bf2 {[%clk 0:01:01]}  Qe7 {[%clk 0:00:12]} 27. Nf6+ {[%clk 0:00:53]}  Kh8 {[%clk 0:00:12]} 28. b4 {[%clk 0:00:41]}  Rc8 {[%clk 0:00:07]} 29. Bc5 {[%clk 0:00:36]}  Qd8 {[%clk 0:00:07]} 30. Qxd8 {[%clk 0:00:37]}  Rxd8 {[%clk 0:00:08]} 31. Bxf8 {[%clk 0:00:37]}  Rxf8 {[%clk 0:00:08]} 32. Rxf4 {[%clk 0:00:37]}  Bf5 {[%clk 0:00:04]} 33. Nxh5 {[%clk 0:00:37]}  Rc8 {[%clk 0:00:04]} 34. Ng3 {[%clk 0:00:37]}  Bg6 {[%clk 0:00:04]} 35. b5 {[%clk 0:00:36]}  Rc1+ {[%clk 0:00:03]} 36. Kh2 {[%clk 0:00:36]}  Rb1 {[%clk 0:00:04]} 37. Rb4 {[%clk 0:00:35]}  Re1 {[%clk 0:00:05]} 38. a5 {[%clk 0:00:35]}  Ra1 {[%clk 0:00:05]} 39. a6 {[%clk 0:00:34]}  b6 {[%clk 0:00:06]} 40. Rd4 {[%clk 0:00:30]}  Kg7 {[%clk 0:00:05]} 41. Rd6 {[%clk 0:00:31]}  Bd3 {[%clk 0:00:00]} 42. Rxd3 {[%clk 0:00:30]} 1-0


[Site "https://www.chess.com"]

[Event "Titled Tuesday Blitz May 30 Early 2023"]
[White "Djordjevic, Vuk"]
[Black "Martic, Ivan"]
[WhiteFideId "902098"]
[BlackFideId "929301"]
[WhiteElo "2452"]
[BlackElo "2360"]
[Result "0-1"]
[Round "02"]
[TimeControl "180+2"]
[Date "2023.05.30"]
[WhiteClock "0:01:13"]
[BlackClock "0:01:56"]

1. d4 {[%clk 0:03:00]}  d5 {[%clk 0:02:57]} 2. Nf3 {[%clk 0:03:00]}  Nf6 {[%clk 0:02:57]} 3. c4 {[%clk 0:03:01]}  c6 {[%clk 0:02:57]} 4. Nc3 {[%clk 0:03:00]}  dxc4 {[%clk 0:02:57]} 5. a4 {[%clk 0:02:59]}  Bf5 {[%clk 0:02:56]} 6. Ne5 {[%clk 0:02:54]}  e6 {[%clk 0:02:54]} 7. Nxc4 {[%clk 0:02:46]}  Bb4 {[%clk 0:02:48]} 8. e3 {[%clk 0:02:39]}  O-O {[%clk 0:02:47]} 9. Bd2 {[%clk 0:02:34]}  c5 {[%clk 0:02:43]} 10. dxc5 {[%clk 0:02:23]}  Na6 {[%clk 0:02:41]} 11. Be2 {[%clk 0:02:23]}  Nxc5 {[%clk 0:02:37]} 12. O-O {[%clk 0:02:23]}  Rc8 {[%clk 0:02:29]} 13. Nb5 {[%clk 0:01:49]}  Bxd2 {[%clk 0:02:23]} 14. Qxd2 {[%clk 0:01:39]}  a6 {[%clk 0:02:00]} 15. Nbd6 {[%clk 0:01:32]}  Nb3 {[%clk 0:01:57]} 16. Qd3 {[%clk 0:01:13]}  Bxd3 {[%clk 0:01:56]} 0-1


[Site "https://www.chess.com"]

[Event "Titled Tuesday Blitz May 30 Early 2023"]
[White "Hasangatin, Ramil"]
[Black "Bagwe Gaurang"]
[WhiteFideId "4122160"]
[BlackFideId "45039895"]
[WhiteElo "2279"]
[BlackElo "1847"]
[Result "1-0"]
[Round "02"]
[TimeControl "180+2"]
[Date "2023.05.30"]
[WhiteClock "0:00:12"]
[BlackClock "0:00:00"]

1. e4 {[%clk 0:02:56]}  c5 {[%clk 0:02:59]} 2. Nf3 {[%clk 0:02:56]}  d6 {[%clk 0:02:59]} 3. d4 {[%clk 0:02:56]}  cxd4 {[%clk 0:03:00]} 4. Qxd4 {[%clk 0:02:57]}  Nc6 {[%clk 0:02:55]} 5. Bb5 {[%clk 0:02:56]}  Bd7 {[%clk 0:02:55]} 6. Bxc6 {[%clk 0:02:56]}  bxc6 {[%clk 0:02:55]} 7. c4 {[%clk 0:02:55]}  e5 {[%clk 0:02:48]} 8. Qd3 {[%clk 0:02:55]}  Be7 {[%clk 0:02:48]} 9. Nc3 {[%clk 0:02:54]}  Nf6 {[%clk 0:02:46]} 10. Bg5 {[%clk 0:02:54]}  Qc7 {[%clk 0:02:43]} 11. Rd1 {[%clk 0:02:52]}  Rd8 {[%clk 0:02:41]} 12. Bxf6 {[%clk 0:02:51]}  gxf6 {[%clk 0:02:41]} 13. Nh4 {[%clk 0:02:50]}  Rg8 {[%clk 0:02:40]} 14. O-O {[%clk 0:02:49]}  Rg5 {[%clk 0:02:16]} 15. b3 {[%clk 0:02:28]}  Bg4 {[%clk 0:02:06]} 16. f3 {[%clk 0:02:26]}  Be6 {[%clk 0:02:06]} 17. Kh1 {[%clk 0:02:24]}  h5 {[%clk 0:01:44]} 18. Rd2 {[%clk 0:02:06]}  Qd7 {[%clk 0:01:30]} 19. Rfd1 {[%clk 0:02:04]}  a5 {[%clk 0:01:06]} 20. Na4 {[%clk 0:02:02]}  f5 {[%clk 0:00:52]} 21. exf5 {[%clk 0:01:57]}  Bxf5 {[%clk 0:00:52]} 22. Nxf5 {[%clk 0:01:55]}  Qxf5 {[%clk 0:00:51]} 23. Qc3 {[%clk 0:01:45]}  h4 {[%clk 0:00:47]} 24. Re2 {[%clk 0:01:28]}  Kf8 {[%clk 0:00:34]} 25. Rde1 {[%clk 0:01:27]}  Bf6 {[%clk 0:00:23]} 26. Qe3 {[%clk 0:01:21]}  h3 {[%clk 0:00:20]} 27. g4 {[%clk 0:01:18]}  Qf4 {[%clk 0:00:19]} 28. Qxf4 {[%clk 0:01:05]}  exf4 {[%clk 0:00:20]} 29. Re4 {[%clk 0:00:54]}  Re5 {[%clk 0:00:20]} 30. Kg1 {[%clk 0:00:50]}  Rxe4 {[%clk 0:00:19]} 31. Rxe4 {[%clk 0:00:47]}  Re8 {[%clk 0:00:19]} 32. Kf2 {[%clk 0:00:38]}  d5 {[%clk 0:00:16]} 33. Rxe8+ {[%clk 0:00:35]}  Kxe8 {[%clk 0:00:17]} 34. cxd5 {[%clk 0:00:34]}  cxd5 {[%clk 0:00:17]} 35. a3 {[%clk 0:00:29]}  Kd7 {[%clk 0:00:17]} 36. b4 {[%clk 0:00:29]}  Kc6 {[%clk 0:00:15]} 37. bxa5 {[%clk 0:00:26]}  Kb5 {[%clk 0:00:15]} 38. Nb6 {[%clk 0:00:26]}  Be7 {[%clk 0:00:06]} 39. Nxd5 {[%clk 0:00:25]}  Bxa3 {[%clk 0:00:06]} 40. Ke2 {[%clk 0:00:21]}  Kxa5 {[%clk 0:00:05]} 41. Nxf4 {[%clk 0:00:19]}  Bd6 {[%clk 0:00:05]} 42. Nxh3 {[%clk 0:00:18]}  Kb5 {[%clk 0:00:06]} 43. Ng5 {[%clk 0:00:18]}  Bxh2 {[%clk 0:00:04]} 44. Nxf7 {[%clk 0:00:18]}  Kc6 {[%clk 0:00:05]} 45. Ng5 {[%clk 0:00:18]}  Kd7 {[%clk 0:00:05]} 46. Kd3 {[%clk 0:00:18]}  Bd6 {[%clk 0:00:05]} 47. Ke4 {[%clk 0:00:18]}  Ke7 {[%clk 0:00:06]} 48. f4 {[%clk 0:00:18]}  Kf6 {[%clk 0:00:06]} 49. Nf3 {[%clk 0:00:18]}  Bc7 {[%clk 0:00:06]} 50. Nd4 {[%clk 0:00:17]}  Bb8 {[%clk 0:00:06]} 51. Nf3 {[%clk 0:00:16]}  Bc7 {[%clk 0:00:07]} 52. Nh4 {[%clk 0:00:16]}  Bb8 {[%clk 0:00:05]} 53. g5+ {[%clk 0:00:16]}  Kf7 {[%clk 0:00:05]} 54. f5 {[%clk 0:00:14]}  Bd6 {[%clk 0:00:05]} 55. Kf3 {[%clk 0:00:14]}  Be7 {[%clk 0:00:05]} 56. Kg4 {[%clk 0:00:14]}  Bd8 {[%clk 0:00:06]} 57. Kh5 {[%clk 0:00:15]}  Be7 {[%clk 0:00:06]} 58. Ng6 {[%clk 0:00:15]}  Bd8 {[%clk 0:00:06]} 59. Ne5+ {[%clk 0:00:15]}  Kg7 {[%clk 0:00:06]} 60. Ng4 {[%clk 0:00:13]}  Kh7 {[%clk 0:00:05]} 61. f6 {[%clk 0:00:12]}  Bb6 {[%clk 0:00:05]} 62. g6+ {[%clk 0:00:12]}  Kg8 {[%clk 0:00:00]} 63. Nh6+ {[%clk 0:00:12]} 1-0


[Site "https://www.chess.com"]

[Event "Titled Tuesday Blitz May 30 Early 2023"]
[White "Rengifo Blancas, Renzo Jhonathan"]
[Black "Kushko, Dmitriy"]
[WhiteFideId "3807185"]
[BlackFideId "14162261"]
[WhiteElo "2085"]
[BlackElo "2230"]
[Result "0-1"]
[Round "02"]
[TimeControl "180+2"]
[Date "2023.05.30"]
[WhiteClock "0:00:19"]
[BlackClock "0:00:27"]

1. e4 {[%clk 0:03:00]}  g6 {[%clk 0:03:00]} 2. d4 {[%clk 0:03:00]}  Bg7 {[%clk 0:03:00]} 3. c4 {[%clk 0:02:57]}  d6 {[%clk 0:03:01]} 4. Nc3 {[%clk 0:02:52]}  e5 {[%clk 0:03:01]} 5. Nf3 {[%clk 0:02:50]}  Bg4 {[%clk 0:02:59]} 6. dxe5 {[%clk 0:02:49]}  dxe5 {[%clk 0:03:00]} 7. Qb3 {[%clk 0:02:44]}  Bxf3 {[%clk 0:02:48]} 8. gxf3 {[%clk 0:02:43]}  Nc6 {[%clk 0:02:49]} 9. Qxb7 {[%clk 0:02:41]}  Nd4 {[%clk 0:02:44]} 10. Nd5 {[%clk 0:02:18]}  Rb8 {[%clk 0:01:39]} 11. Qxa7 {[%clk 0:01:22]}  Nc2+ {[%clk 0:01:18]} 12. Ke2 {[%clk 0:01:20]}  Nxa1 {[%clk 0:01:14]} 13. Bg5 {[%clk 0:01:04]}  Rxb2+ {[%clk 0:01:11]} 14. Ke1 {[%clk 0:00:59]}  Qxg5 {[%clk 0:01:01]} 15. Nxc7+ {[%clk 0:00:49]}  Kd8 {[%clk 0:00:56]} 16. Qa8+ {[%clk 0:00:32]}  Kxc7 {[%clk 0:00:56]} 17. Qa7+ {[%clk 0:00:32]}  Kd8 {[%clk 0:00:45]} 18. Qa8+ {[%clk 0:00:31]}  Kc7 {[%clk 0:00:34]} 19. Qa7+ {[%clk 0:00:31]}  Rb7 {[%clk 0:00:32]} 20. Qc5+ {[%clk 0:00:30]}  Kd8 {[%clk 0:00:28]} 21. Qf8+ {[%clk 0:00:19]}  Bxf8 {[%clk 0:00:27]} 0-1


[Site "https://www.chess.com"]

[Event "Titled Tuesday Blitz May 30 Early 2023"]
[White "Baches Garcia, Guillermo"]
[Black "Karthik Rajaa"]
[WhiteFideId "2209764"]
[BlackFideId "25035215"]
[WhiteElo "2536"]
[BlackElo "2215"]
[Result "0-1"]
[Round "02"]
[TimeControl "180+2"]
[Date "2023.05.30"]
[WhiteClock "0:00:00"]
[BlackClock "0:00:44"]

1. e4 {[%clk 0:03:00]}  Nf6 {[%clk 0:02:56]} 2. e5 {[%clk 0:03:00]}  Nd5 {[%clk 0:02:54]} 3. c4 {[%clk 0:03:00]}  Nb6 {[%clk 0:02:54]} 4. d4 {[%clk 0:03:01]}  d6 {[%clk 0:02:55]} 5. exd6 {[%clk 0:03:01]}  exd6 {[%clk 0:02:56]} 6. Nc3 {[%clk 0:03:01]}  Be7 {[%clk 0:02:56]} 7. Be2 {[%clk 0:03:02]}  O-O {[%clk 0:02:57]} 8. h3 {[%clk 0:03:02]}  Re8 {[%clk 0:02:52]} 9. Nf3 {[%clk 0:03:02]}  Bf6 {[%clk 0:02:42]} 10. O-O {[%clk 0:03:02]}  Nc6 {[%clk 0:02:42]} 11. b3 {[%clk 0:03:01]}  Ne7 {[%clk 0:02:41]} 12. g4 {[%clk 0:02:50]}  Ng6 {[%clk 0:02:38]} 13. Be3 {[%clk 0:02:47]}  h6 {[%clk 0:02:30]} 14. Qd2 {[%clk 0:02:45]}  c6 {[%clk 0:02:22]} 15. Rad1 {[%clk 0:02:41]}  d5 {[%clk 0:02:22]} 16. c5 {[%clk 0:02:36]}  Nd7 {[%clk 0:02:21]} 17. b4 {[%clk 0:02:27]}  Ndf8 {[%clk 0:02:21]} 18. b5 {[%clk 0:02:12]}  Ne6 {[%clk 0:02:20]} 19. a4 {[%clk 0:02:09]}  Ng5 {[%clk 0:02:14]} 20. Nxg5 {[%clk 0:02:05]}  hxg5 {[%clk 0:02:15]} 21. Bd3 {[%clk 0:01:52]}  Nf8 {[%clk 0:01:56]} 22. Ne2 {[%clk 0:01:42]}  Ne6 {[%clk 0:01:52]} 23. Bb1 {[%clk 0:01:40]}  g6 {[%clk 0:01:51]} 24. f4 {[%clk 0:01:33]}  gxf4 {[%clk 0:01:38]} 25. Nxf4 {[%clk 0:01:31]}  Ng5 {[%clk 0:01:38]} 26. Rde1 {[%clk 0:01:21]}  Ne4 {[%clk 0:01:33]} 27. Qg2 {[%clk 0:01:19]}  Bh4 {[%clk 0:01:31]} 28. Rc1 {[%clk 0:00:59]}  Bd7 {[%clk 0:01:21]} 29. Rf3 {[%clk 0:00:54]}  Ng5 {[%clk 0:01:18]} 30. Rcf1 {[%clk 0:00:53]}  Nxf3+ {[%clk 0:01:12]} 31. Qxf3 {[%clk 0:00:53]}  Qe7 {[%clk 0:01:06]} 32. Bd2 {[%clk 0:00:49]}  Qf6 {[%clk 0:01:00]} 33. Qd3 {[%clk 0:00:32]}  Qg7 {[%clk 0:01:01]} 34. Rf3 {[%clk 0:00:19]}  Bf6 {[%clk 0:00:58]} 35. Bc3 {[%clk 0:00:17]}  Re4 {[%clk 0:00:56]} 36. Qf1 {[%clk 0:00:15]}  Bxd4+ {[%clk 0:00:54]} 37. Bxd4 {[%clk 0:00:15]}  Rxd4 {[%clk 0:00:55]} 38. bxc6 {[%clk 0:00:10]}  bxc6 {[%clk 0:00:54]} 39. g5 {[%clk 0:00:10]}  Re8 {[%clk 0:00:51]} 40. Ng2 {[%clk 0:00:06]}  Rd2 {[%clk 0:00:47]} 41. Ne3 {[%clk 0:00:00]}  Qd4 {[%clk 0:00:44]} 0-1


[Site "https://www.chess.com"]

[Event "Titled Tuesday Blitz May 30 Early 2023"]
[White "Sieciechowicz, Marcin"]
[Black "Chylewski, Patryk"]
[WhiteFideId "1130170"]
[BlackFideId "1186191"]
[WhiteElo "2302"]
[BlackElo "2163"]
[Result "1-0"]
[Round "02"]
[TimeControl "180+2"]
[Date "2023.05.30"]
[WhiteClock "0:01:24"]
[BlackClock "0:00:03"]

1. d4 {[%clk 0:03:00]}  Nf6 {[%clk 0:02:59]} 2. c4 {[%clk 0:03:01]}  e6 {[%clk 0:02:59]} 3. Nc3 {[%clk 0:03:01]}  Bb4 {[%clk 0:02:59]} 4. Qc2 {[%clk 0:03:02]}  O-O {[%clk 0:02:57]} 5. Nf3 {[%clk 0:03:02]}  b6 {[%clk 0:02:53]} 6. e4 {[%clk 0:03:01]}  Bxc3+ {[%clk 0:02:50]} 7. bxc3 {[%clk 0:03:01]}  d5 {[%clk 0:02:50]} 8. cxd5 {[%clk 0:03:00]}  exd5 {[%clk 0:02:50]} 9. e5 {[%clk 0:03:00]}  Ne4 {[%clk 0:02:50]} 10. Bd3 {[%clk 0:03:01]}  Bb7 {[%clk 0:02:51]} 11. O-O {[%clk 0:03:00]}  c5 {[%clk 0:02:46]} 12. a4 {[%clk 0:03:01]}  Nd7 {[%clk 0:02:43]} 13. a5 {[%clk 0:02:54]}  Rc8 {[%clk 0:02:35]} 14. axb6 {[%clk 0:02:49]}  axb6 {[%clk 0:02:35]} 15. Ra7 {[%clk 0:02:44]}  Bc6 {[%clk 0:02:08]} 16. Be3 {[%clk 0:02:24]}  cxd4 {[%clk 0:01:47]} 17. cxd4 {[%clk 0:02:22]}  Bb5 {[%clk 0:01:29]} 18. Qe2 {[%clk 0:02:02]}  Bxd3 {[%clk 0:01:26]} 19. Qxd3 {[%clk 0:02:02]}  Nb8 {[%clk 0:01:25]} 20. h3 {[%clk 0:01:49]}  Nc6 {[%clk 0:01:22]} 21. Ra3 {[%clk 0:01:49]}  Nb4 {[%clk 0:01:11]} 22. Qb1 {[%clk 0:01:41]}  Nc2 {[%clk 0:01:10]} 23. Rb3 {[%clk 0:01:42]}  Nxe3 {[%clk 0:01:09]} 24. Rxe3 {[%clk 0:01:38]}  Qc7 {[%clk 0:00:42]} 25. Rb3 {[%clk 0:01:35]}  Rb8 {[%clk 0:00:22]} 26. Qb2 {[%clk 0:01:36]}  Rfc8 {[%clk 0:00:21]} 27. Rb1 {[%clk 0:01:35]}  h6 {[%clk 0:00:18]} 28. Rxb6 {[%clk 0:01:28]}  Rxb6 {[%clk 0:00:18]} 29. Qxb6 {[%clk 0:01:29]}  Qxb6 {[%clk 0:00:16]} 30. Rxb6 {[%clk 0:01:29]}  Rc1+ {[%clk 0:00:16]} 31. Kh2 {[%clk 0:01:30]}  Nxf2 {[%clk 0:00:17]} 32. Rb8+ {[%clk 0:01:30]}  Kh7 {[%clk 0:00:17]} 33. Rd8 {[%clk 0:01:26]}  Nd3 {[%clk 0:00:16]} 34. Rxd5 {[%clk 0:01:24]}  Nf4 {[%clk 0:00:16]} 35. Rd7 {[%clk 0:01:23]}  Kg6 {[%clk 0:00:13]} 36. Nh4+ {[%clk 0:01:24]}  Kg5 {[%clk 0:00:09]} 37. Rxf7 {[%clk 0:01:24]}  Nd5 {[%clk 0:00:03]} 38. Rf5+ {[%clk 0:01:23]}  Kxh4 {[%clk 0:00:03]} 39. g3# {[%clk 0:01:24]} 1-0


[Site "https://www.chess.com"]